[Event "FIDE CB Open 2022"]
[Site "Ceske Budejovice"]
[Date "2022.07.06"]
[Round "6.38"]
[White "Nejdl, Eduard"]
[Black "Schmied, Eva-Maria"]
[Result "0-1"]
[ECO "B47"]
[WhiteElo "1951"]
[BlackElo "1718"]
[Annotator "TA"]
[PlyCount "37"]
[EventDate "2022.07.01"]
[EventType "swiss"]
[EventCountry "CZE"]
[SourceTitle "playchess.com"]
[Source "ChessBase"]
[SourceQuality "1"]
[TimeControl "40/5400+30:1800+30"]

{[%evp 14,37,29,12,60,23,67,11,7,0,5,16,70,48,46,47,192,44,67,41,80,69,90,95,100,70]} 1. e4 {[%emt 0:00:07]} c5 {[%emt 0:00:03]} 2. Nf3 {[%emt 0:00:07][%cal Bg1f3,Bf3d4,Bd4b3][%mdl 32]} e6 {[%emt 0:00:05]} 3. Nc3 {[%emt 0:00:09]} Nc6 {[%emt 0:00:08]} 4. d4 {[%emt 0:00:40]} cxd4 {[%emt 0:00:06]} 5. Nxd4 {[%emt 0:00:08]} Qc7 {[%emt 0:01:33]} 6. g3 {[%emt 0:01:14]} a6 {[%emt 0:00:09]} 7. Bg2 {[%emt 0:00:52]} Nf6 {[%emt 0:00:06]} 8. Nb3 {[%emt 0:02:06]} Bb4 {[%emt 0:04:32] B47: Sicilian: Taimanov: 5 Nc3 Qc7 6 f4, 6 g3 and 6 Be2.} (8... d6 $11 {should be considered.}) 9. O-O $1 $14 {[%emt 0:01:34] [#]} h5 $146 {[%emt 0:11:05]} ({Predecessor:} 9... Be7 10. f4 d6 11. Be3 h5 12. h3 b5 13. a3 Bb7 14. Qe2 Rc8 15. Qf2 Nb8 16. Bb6 Qd7 {0-1 (57) Malisauskas,V (2510)-Miezis,N (2527) Liepaja 2006}) 10. Bf4 {[%emt 0:06:55]} ({Better is} 10. h3 $14) 10... e5 $1 $11 {[%emt 0:05:42] The position is equal.} 11. Bg5 {[%emt 0:00:11] Black must now prevent Bxf6.} Bxc3 {[%emt 0:00:54]} 12. bxc3 {[%emt 0:00:10]} Nd8 {[%emt 0:05:57]} ({Black should try} 12... d6 $11) 13. Qd3 $36 {[%emt 0:05:26][%mdl 2048] White has some pressure.} (13. Qf3 {is interesting.} Ng4 14. Rad1 a5 15. h3) 13... Ne6 {[%emt 0:03:19]} 14. Bc1 {[%emt 0:00:06] Hoping for Ba3.} Nc5 {[%emt 0:09:38]} (14... d6 $14) 15. Qe3 {[%emt 0:07:03]} (15. Nxc5 $18 Qxc5 16. a4) 15... b6 {[%emt 0:07:01]} 16. a4 {[%emt 0:10:47]} d6 {[%emt 0:05:50]} 17. a5 {[%emt 0:04:35]} Be6 {[%emt 0:05:18]} 18. axb6 {[%emt 0:03:55]} Qxb6 {[%emt 0:00:51]} 19. Ba3 {[%emt 0:04:05][%mdl 32768] Weighted Error Value: White=0.34/Black=0.41. Loss on time!?} 0-1

[Event "FIDE CB Open 2022"]
[Site "Ceske Budejovice"]
[Date "2022.07.06"]
[Round "6.39"]
[White "Tsifanskaya, Ludmila A"]
[Black "Zednicek, Filip"]
[Result "0-1"]
[ECO "A08"]
[WhiteElo "1941"]
[BlackElo "1688"]
[Annotator "TA"]
[PlyCount "85"]
[EventDate "2022.07.01"]
[EventType "swiss"]
[EventCountry "CZE"]
[SourceTitle "playchess.com"]
[Source "ChessBase"]
[SourceQuality "1"]
[TimeControl "40/5400+30:1800+30"]

{[%evp 17,85,0,0,-9,33,7,22,21,18,0,0,-1,0,0,-2,-25,-10,-39,6,3,9,0,17,21,22,18,15,25,24,-26,-25,-35,-18,-19,-35,-46,-57,-72,-66,-64,-10,-34,11,-97,-98,-201,-216,-215,-200,-279,-214,-461,-461,-837,-833,-808,-785,-776,-725,-676,-640,-770,-752,-872,-839,-1336,-1549,-2002,-2022,-1752]} 1. Nf3 {[%emt 0:00:07]} d5 {[%emt 0:00:22]} 2. g3 {[%emt 0:00:06]} c5 {[%emt 0:00:29]} 3. Bg2 {[%emt 0:00:07]} Nc6 {[%emt 0:00:13]} 4. O-O {[%emt 0:00:10]} e5 {[%emt 0:00:11]} 5. d3 {[%emt 0:00:05]} Nf6 {[%emt 0:06:03]} 6. Na3 {[%emt 0:02:17]} Be7 {[%emt 0:04:00]} 7. e4 {[%emt 0:00:27]} d4 {[%emt 0:06:08]} 8. Nc4 {[%emt 0:00:26]} Qc7 {[%emt 0:00:26]} 9. a4 {[%emt 0:00:09]} O-O {[%emt 0:02:25] 9...Be6 might become the main line.} 10. Nh4 {[%emt 0:07:33] A08: King's Indian Attack.} Na5 {[%emt 0:04:43]} 11. b3 {[%emt 0:01:43] [#]} Nxc4 $146 {[%emt 0:04:22]} ({Predecessor:} 11... Ne8 12. Nf5 Bf6 13. f4 Nxc4 14. bxc4 g6 15. Nh6+ Kh8 16. f5 gxf5 17. Nxf5 Bxf5 18. Rxf5 {1-0 (28) Ristic,B (2086)-Ilic,S (2214) Nis 2004}) 12. bxc4 {[%emt 0:00:09] The position is equal.} g6 {[%emt 0:00:27]} 13. Bh6 {[%emt 0:04:05]} Re8 {[%emt 0:00:10]} 14. h3 {[%emt 0:01:24]} Bf8 {[%emt 0:05:09]} 15. Bg5 {[%emt 0:03:09]} Bg7 {[%emt 0:02:25]} 16. Bd2 {[%emt 0:03:24]} Bd7 {[%emt 0:07:54]} 17. Kh2 {[%emt 0:04:04]} Nh5 {[%emt 0:07:15] [#]} 18. Nf5 $1 {[%emt 0:03:15]} Bf8 {[%emt 0:02:36]} (18... Bc6 19. Nxg7) 19. Qf3 {[%emt 0:10:48]} Qc8 {[%emt 0:06:22]} 20. Nh6+ {[%emt 0:00:37]} Bxh6 {[%emt 0:00:09]} 21. Bxh6 {[%emt 0:00:02]} Re6 {[%emt 0:01:30]} 22. Qe2 {[%emt 0:02:39]} Ra6 {[%emt 0:04:52]} 23. f4 {[%emt 0:09:27]} ({Better is} 23. a5) 23... exf4 $11 {[%emt 0:02:04]} 24. gxf4 {[%emt 0:00:42]} Rxa4 {[%emt 0:07:32]} 25. Rxa4 {[%emt 0:01:14]} Bxa4 {[%emt 0:00:18]} 26. Bf3 {[%emt 0:08:46]} Ng7 {[%emt 0:05:05]} 27. f5 {[%emt 0:05:29]} Qc7+ {[%emt 0:01:33]} (27... gxf5 $2 28. Rg1 Qf8 29. Bxg7 Qxg7 30. Rxg7+ Kxg7 31. exf5 $18) 28. Kh1 {[%emt 0:01:06]} Qg3 {[%emt 0:07:32]} (28... a5 $15) 29. Bg4 $1 {[%emt 0:03:45]} Qh4 {[%emt 0:01:56]} 30. Bxg7 {[%emt 0:01:53]} (30. Qd2 $1 $11 Qf6 31. Kg1) 30... Kxg7 $17 {[%emt 0:00:31]} 31. fxg6 {[%emt 0:01:38]} (31. Qg2 $17 {is a better defense.}) 31... hxg6 $19 {[%emt 0:00:46]} 32. Qh2 {[%emt 0:01:35]} Qe7 {[%emt 0:01:06] Inhibits Qc7.} 33. Qd2 {[%emt 0:01:58]} Rh8 {[%emt 0:02:19]} 34. c3 $2 {[%emt 0:00:51]} (34. Kg1) 34... Bd7 {[%emt 0:00:41] [#] aiming for ...Bxg4. Black is clearly winning.} 35. Qg2 {[%emt 0:01:43]} (35. Kg1 $142 Bxg4 36. hxg4) 35... Bxg4 {[%emt 0:00:33]} 36. Qxg4 {[%emt 0:00:03]} dxc3 {[%emt 0:00:37][%mdl 4096] Endgame KQR-KQR} 37. Qf3 {[%emt 0:03:05]} Qe6 {[%emt 0:03:00]} 38. Kg2 {[%emt 0:00:52]} Rd8 {[%emt 0:00:56] ...a5 is the strong threat.} 39. Rf2 {[%emt 0:01:46]} Rd7 {[%emt 0:01:35]} 40. Rc2 {[%emt 0:00:33]} Qe5 {[%emt 0:00:15]} 41. Qe2 {[%emt 0:34:09]} a6 {[%emt 0:30:42] White must now prevent ...b5.} 42. Qe3 {[%emt 0:00:53]} b5 {[%emt 0:01:00]} 43. cxb5 {[%emt 0:00:28] Weighted Error Value: White=0.74/Black=0.12 (very precise)} 0-1

[Event "FIDE CB Open 2022"]
[Site "Ceske Budejovice"]
[Date "2022.07.06"]
[Round "6.40"]
[White "Zeleny, Tomas"]
[Black "Pavlis, Matej"]
[Result "1/2-1/2"]
[ECO "A43"]
[WhiteElo "2136"]
[BlackElo "1625"]
[Annotator "TA"]
[PlyCount "39"]
[EventDate "2022.07.01"]
[EventType "swiss"]
[EventCountry "CZE"]
[SourceTitle "playchess.com"]
[Source "ChessBase"]
[SourceQuality "1"]
[TimeControl "40/5400+30:1800+30"]

{[%evp 9,39,37,42,34,44,39,38,43,50,35,38,12,20,23,23,19,29,28,33,23,31,35,48,44,40,0,0,0,0,0,0,-108]} 1. e4 {[%emt 0:00:06]} c5 {[%emt 0:00:09]} 2. d4 {[%emt 0:00:07][%cal Bd2d4,Bd4d5][%mdl 32]} e6 {[%emt 0:01:13]} 3. d5 {[%emt 0:07:55]} d6 {[%emt 0:05:40]} 4. Nc3 {[%emt 0:05:09]} Nf6 {[%emt 0:02:39]} 5. Nf3 {[%emt 0:01:08]} Be7 {[%emt 0:01:28]} 6. Bc4 {[%emt 0:05:47] A43: Schmid Benoni.} exd5 {[%emt 0:03:31]} 7. Bxd5 {[%emt 0:01:18]} O-O {[%emt 0:02:04]} 8. O-O {[%emt 0:00:18] White is slightly better.} Nc6 {[%emt 0:00:48]} 9. Bf4 {[%emt 0:05:04]} Nb4 {[%emt 0:14:26]} 10. Re1 {[%emt 0:01:48]} Nbxd5 {[%emt 0:00:35]} 11. Nxd5 {[%emt 0:00:25]} Nxd5 {[%emt 0:00:48]} 12. Qxd5 {[%emt 0:00:26]} Qb6 {[%emt 0:01:13]} 13. b3 {[%emt 0:07:45]} Be6 {[%emt 0:01:20]} 14. Qd3 {[%emt 0:00:17]} (14. Qh5 {is more complex.} h6 15. Nh4 Qa5 16. Nf5) 14... Rad8 {[%emt 0:11:11]} 15. c4 {[%emt 0:00:24]} Bf6 {[%emt 0:00:28]} 16. Rad1 {[%emt 0:03:38][%cal Rf4d6]} h6 {[%emt 0:01:32]} 17. Bxd6 {[%emt 0:19:41]} Rd7 {[%emt 0:00:49] The position is equal.} 18. e5 {[%emt 0:08:15] [#] Threatens to win with b4.} Be7 {[%emt 0:00:59] [#]} 19. h3 $146 {[%emt 0:10:30]} ({Predecessor:} 19. Qe4 Bxd6 20. exd6 Rfd8 21. h3 Rxd6 22. Rxd6 Rxd6 23. Qe3 a6 24. Nd2 Qa5 25. Ne4 Rc6 26. Re2 Qc7 27. Nc3 Rd6 28. Qg3 Rd7 {½-½ (28) Zeleny,T (1894)-Pavlis,M (1625) Ceske Budejovice 2022}) 19... Rfd8 {[%emt 0:02:48]} 20. g3 {[%emt 0:17:11] Weighted Error Value: White=0.09 (flawless) /Black=0.03 (flawless)} (20. Qe4 $11) 1/2-1/2

[Event "FIDE CB Open 2022"]
[Site "Ceske Budejovice"]
[Date "2022.07.06"]
[Round "6.41"]
[White "Rucabado, Stefan"]
[Black "Hradek, Matyas"]
[Result "0-1"]
[ECO "D45"]
[WhiteElo "1809"]
[BlackElo "1888"]
[Annotator "NA RC COMBH"]
[PlyCount "76"]
[EventDate "2022.07.01"]
[EventType "swiss"]
[EventCountry "CZE"]
[SourceTitle "playchess.com"]
[Source "ChessBase"]
[SourceQuality "1"]
[TimeControl "40/5400+30:1800+30"]

1. d4 {[%emt 0:00:30]} d5 {[%emt 0:00:06]} 2. c4 {[%emt 0:00:09]} c6 {[%emt 0:00:01]} 3. Nf3 {[%emt 0:00:14]} Nf6 {[%emt 0:00:05]} 4. Nc3 {[%emt 0:00:07]} e6 {[%emt 0:00:04]} 5. e3 {[%emt 0:00:09]} Be7 {[%emt 0:01:27]} 6. Qc2 {[%emt 0:02:29]} O-O {[%emt 0:01:03]} 7. g4 {[%emt 0:08:04]} Nxg4 {[%emt 0:16:43]} 8. Rg1 {[%emt 0:00:07]} f5 {[%emt 0:02:27]} 9. h3 {[%emt 0:03:11]} Nf6 {[%emt 0:01:42]} 10. Bd2 {[%emt 0:06:44]} Ne4 {[%emt 0:09:10]} 11. Ne2 {[%emt 0:00:43]} Nd7 {[%emt 0:05:04]} 12. Nf4 {[%emt 0:02:01]} Ndf6 {[%emt 0:01:04]} 13. Be2 {[%emt 0:09:44]} Nxd2 {[%emt 0:18:24]} 14. Nxd2 {[%emt 0:00:44]} Qa5 {[%emt 0:02:20]} 15. f3 {[%emt 0:20:50]} dxc4 {[%emt 0:08:23]} 16. Kf2 {[%emt 0:12:25]} Nd5 {[%emt 0:02:43]} 17. Nxc4 {[%emt 0:00:49]} Bh4+ {[%emt 0:03:06]} 18. Kf1 {[%emt 0:00:36]} Qc7 {[%emt 0:01:03]} 19. Nh5 {[%emt 0:08:07]} Rf7 {[%emt 0:07:39]} 20. Qd2 {[%emt 0:03:40]} Qh2 {[%emt 0:02:38]} 21. Rg2 {[%emt 0:00:10]} Qh1+ {[%emt 0:00:09]} 22. Rg1 {[%emt 0:00:06]} Qxh3+ {[%emt 0:00:09]} 23. Rg2 {[%emt 0:00:02]} f4 {[%emt 0:04:35]} 24. e4 {[%emt 0:01:35]} e5 {[%emt 0:01:54]} 25. Kg1 {[%emt 0:00:43]} Ne3 {[%emt 0:07:10]} 26. Nxe3 {[%emt 0:01:33]} fxe3 {[%emt 0:00:19]} 27. Qxe3 {[%emt 0:00:11]} Bd8 {[%emt 0:02:08]} 28. Rh2 {[%emt 0:04:04]} Qd7 {[%emt 0:00:14]} 29. Bc4 {[%emt 0:00:47]} Bb6 {[%emt 0:00:32]} 30. Bxf7+ {[%emt 0:00:56]} Qxf7 {[%emt 0:00:25]} 31. Qe2 {[%emt 0:02:38]} Bxd4+ {[%emt 0:00:47]} 32. Kh1 {[%emt 0:00:06]} Be6 {[%emt 0:00:30]} 33. a3 {[%emt 0:03:05]} Rf8 {[%emt 0:00:56]} 34. Qg2 {[%emt 0:03:45]} g6 {[%emt 0:00:50]} 35. Rf1 {[%emt 0:03:03]} Bc4 {[%emt 0:00:02]} 36. Rc1 {[%emt 0:00:22]} Bb5 {[%emt 0:00:09]} 37. Ng3 {[%emt 0:03:44]} Qxf3 {[%emt 0:00:10]} 38. Rc2 {[%emt 0:00:23]} Qd1+ {[%emt 0:00:19]} 0-1

[Event "FIDE CB Open 2022"]
[Site "Ceske Budejovice"]
[Date "2022.07.06"]
[Round "6.42"]
[White "Smola, David"]
[Black "Shirinyan, Daniel"]
[Result "0-1"]
[ECO "B90"]
[WhiteElo "1609"]
[BlackElo "1876"]
[Annotator "NA RC COMBH"]
[PlyCount "66"]
[EventDate "2022.07.01"]
[EventType "swiss"]
[EventCountry "CZE"]
[SourceTitle "playchess.com"]
[Source "ChessBase"]
[SourceQuality "1"]
[TimeControl "40/5400+30:1800+30"]

1. e4 {[%emt 0:00:07]} c5 {[%emt 0:00:02]} 2. Nf3 {[%emt 0:00:20]} d6 {[%emt 0:00:05]} 3. d4 {[%emt 0:00:38]} cxd4 {[%emt 0:00:05]} 4. Nxd4 {[%emt 0:00:04]} Nf6 {[%emt 0:00:05]} 5. Nc3 {[%emt 0:00:40]} a6 {[%emt 0:00:15]} 6. Be3 {[%emt 0:01:42]} e5 {[%emt 0:00:11]} 7. Nf3 {[%emt 0:03:30]} Be7 {[%emt 0:04:01]} 8. Qd2 {[%emt 0:06:22]} Nbd7 {[%emt 0:06:29]} 9. Bc4 {[%emt 0:03:09]} O-O {[%emt 0:00:46]} 10. O-O {[%emt 0:01:34]} Nb6 {[%emt 0:03:20]} 11. Bb3 {[%emt 0:02:54]} Bd7 {[%emt 0:01:24]} 12. Rfe1 {[%emt 0:01:49]} Rc8 {[%emt 0:01:31]} 13. Qd3 {[%emt 0:05:53]} Qc7 {[%emt 0:04:11]} 14. Rad1 {[%emt 0:02:12]} Bc6 {[%emt 0:07:23]} 15. Nd2 {[%emt 0:05:56]} Rfd8 {[%emt 0:11:30]} 16. Bxb6 {[%emt 0:06:57]} Qxb6 {[%emt 0:00:02]} 17. Nc4 {[%emt 0:00:50]} Qc7 {[%emt 0:00:28]} 18. Ne3 {[%emt 0:00:50]} b5 {[%emt 0:01:00]} 19. f3 {[%emt 0:03:20]} Qa7 {[%emt 0:07:31]} 20. Kh1 {[%emt 0:03:13]} Bf8 {[%emt 0:01:27]} 21. Ncd5 {[%emt 0:04:25]} Nd7 {[%emt 0:00:08]} 22. Nf5 {[%emt 0:03:54]} Nc5 {[%emt 0:02:59]} 23. Qe3 {[%emt 0:01:51]} Qb7 {[%emt 0:00:48]} 24. Qg5 {[%emt 0:02:34]} Kh8 {[%emt 0:14:16]} 25. Nde7 {[%emt 0:04:08]} h6 {[%emt 0:02:12]} 26. Nxh6 {[%emt 0:07:07]} Qxe7 {[%emt 0:00:49]} 27. Nxf7+ {[%emt 0:00:19]} Kg8 {[%emt 0:00:13]} 28. Qh5 {[%emt 0:00:05]} Nxb3 {[%emt 0:00:33]} 29. Nxd8 {[%emt 0:04:48]} Be8 {[%emt 0:00:50]} 30. Qf5 {[%emt 0:03:39]} Bd7 {[%emt 0:00:34]} 31. Qg6 {[%emt 0:01:21]} Na5 {[%emt 0:02:29]} 32. b4 {[%emt 0:02:33]} Nc4 {[%emt 0:00:46]} 33. Nb7 {[%emt 0:00:59]} Be8 {[%emt 0:00:24]} 0-1

[Event "FIDE CB Open 2022"]
[Site "Ceske Budejovice"]
[Date "2022.07.06"]
[Round "6.43"]
[White "Koc, Azra Ece"]
[Black "Almaini, Aishah Sarhan"]
[Result "1-0"]
[ECO "A45"]
[WhiteElo "1867"]
[BlackElo "1615"]
[Annotator "NA RC COMBH"]
[PlyCount "115"]
[EventDate "2022.07.01"]
[EventType "swiss"]
[EventCountry "CZE"]
[SourceTitle "playchess.com"]
[Source "ChessBase"]
[SourceQuality "1"]
[TimeControl "40/5400+30:1800+30"]

1. d4 {[%emt 0:00:08]} Nf6 {[%emt 0:00:54]} 2. Bf4 {[%emt 0:00:05]} g6 {[%emt 0:01:52]} 3. Nc3 {[%emt 0:01:21]} d5 {[%emt 0:00:30]} 4. h4 {[%emt 0:00:30]} h5 {[%emt 0:01:19]} 5. Nf3 {[%emt 0:02:21]} Bg7 {[%emt 0:00:11]} 6. Ne5 {[%emt 0:01:38]} c5 {[%emt 0:14:24]} 7. e3 {[%emt 0:02:30]} O-O {[%emt 0:11:25]} 8. Be2 {[%emt 0:01:19]} Qb6 {[%emt 0:04:34]} 9. Na4 {[%emt 0:11:09]} Qa5+ {[%emt 0:03:56]} 10. c3 {[%emt 0:00:02]} cxd4 {[%emt 0:07:19]} 11. b4 {[%emt 0:01:42]} Qd8 {[%emt 0:00:19]} 12. cxd4 {[%emt 0:01:53]} Nbd7 {[%emt 0:00:32]} 13. Rc1 {[%emt 0:04:44]} Nxe5 {[%emt 0:04:39]} 14. Bxe5 {[%emt 0:03:51]} Ne4 {[%emt 0:02:11]} 15. Bc7 {[%emt 0:02:11]} Qe8 {[%emt 0:06:53]} 16. Nc5 {[%emt 0:09:10]} Nxc5 {[%emt 0:04:27]} 17. Rxc5 {[%emt 0:00:49]} b6 {[%emt 0:03:26]} 18. Rc3 {[%emt 0:05:08]} Bd7 {[%emt 0:02:02]} 19. Ba6 {[%emt 0:09:03]} Ba4 {[%emt 0:02:51]} 20. Qe2 {[%emt 0:14:23]} e5 {[%emt 0:12:55]} 21. dxe5 {[%emt 0:02:03]} Bxe5 {[%emt 0:00:07]} 22. Bxe5 {[%emt 0:00:38]} Qxe5 {[%emt 0:00:30]} 23. Qd3 {[%emt 0:03:07]} Rad8 {[%emt 0:00:19]} 24. Qd4 {[%emt 0:04:56]} Qxd4 {[%emt 0:04:15]} 25. exd4 {[%emt 0:00:02]} Rfe8+ {[%emt 0:00:08]} 26. Kd2 {[%emt 0:03:54]} Re4 {[%emt 0:01:38]} 27. Rd3 {[%emt 0:02:50]} Rde8 {[%emt 0:02:49]} 28. Kc3 {[%emt 0:00:02]} Re2 {[%emt 0:02:53]} 29. Rd2 {[%emt 0:00:36]} Rxd2 {[%emt 0:00:30]} 30. Kxd2 {[%emt 0:00:01]} Re4 {[%emt 0:00:01]} 31. Kd3 {[%emt 0:00:43]} Bd7 {[%emt 0:00:42]} 32. f3 {[%emt 0:02:44]} Re7 {[%emt 0:00:07]} 33. Rc1 {[%emt 0:00:42]} Bf5+ {[%emt 0:00:33]} 34. Kd2 {[%emt 0:00:14]} Kg7 {[%emt 0:00:27]} 35. Bb5 {[%emt 0:02:07]} f6 {[%emt 0:02:24]} 36. Rc6 {[%emt 0:01:08]} Bb1 {[%emt 0:02:12]} 37. a4 {[%emt 0:00:14]} Ba2 {[%emt 0:00:56]} 38. a5 {[%emt 0:02:26]} bxa5 {[%emt 0:00:52]} 39. bxa5 {[%emt 0:00:11]} Rb7 {[%emt 0:00:29]} 40. Rc5 {[%emt 0:01:05]} Kf7 {[%emt 0:00:57]} 41. a6 {[%emt 0:31:17]} Re7 {[%emt 0:03:58]} 42. Kc2 {[%emt 0:00:00]} Bc4 {[%emt 0:08:45]} 43. Bxc4 {[%emt 0:00:00]} dxc4 {[%emt 0:00:01]} 44. Kc3 {[%emt 0:00:00]} Ke6 {[%emt 0:01:41]} 45. Kxc4 {[%emt 0:00:00]} Kd6 {[%emt 0:00:19]} 46. Kb5 {[%emt 0:00:00]} Re2 {[%emt 0:04:57] [#]} 47. g4 $1 {[%emt 0:00:17]} Rb2+ {[%emt 0:10:19]} 48. Kc4 {[%emt 0:00:16]} hxg4 {[%emt 0:01:46]} 49. fxg4 {[%emt 0:00:14]} Ra2 {[%emt 0:00:03]} 50. h5 {[%emt 0:01:50]} gxh5 {[%emt 0:00:06]} 51. gxh5 {[%emt 0:00:14]} Rxa6 {[%emt 0:00:23]} 52. h6 {[%emt 0:02:27]} Ra4+ {[%emt 0:00:08]} 53. Kb3 {[%emt 0:01:51]} Ra1 {[%emt 0:01:37]} 54. Rh5 {[%emt 0:01:33]} Rb1+ {[%emt 0:00:06]} 55. Kc4 {[%emt 0:00:20]} Rb8 {[%emt 0:02:03]} 56. h7 {[%emt 0:00:21]} Rh8 {[%emt 0:00:30]} 57. Ra5 {[%emt 0:00:32]} Rxh7 {[%emt 0:00:00]} 58. Ra6+ {[%emt 0:00:07]} 1-0

[Event "FIDE CB Open 2022"]
[Site "Ceske Budejovice"]
[Date "2022.07.06"]
[Round "6.44"]
[White "Vojtek, Pavel"]
[Black "Petirova, Iva"]
[Result "1/2-1/2"]
[ECO "A21"]
[WhiteElo "1711"]
[BlackElo "1722"]
[Annotator "NA RC COMBH"]
[PlyCount "161"]
[EventDate "2022.07.01"]
[EventType "swiss"]
[EventCountry "CZE"]
[SourceTitle "playchess.com"]
[Source "ChessBase"]
[SourceQuality "1"]
[TimeControl "40/5400+30:1800+30"]

1. c4 {[%emt 0:00:03]} g6 {[%emt 0:00:10]} 2. g3 {[%emt 0:00:03]} Bg7 {[%emt 0:00:17]} 3. Bg2 {[%emt 0:00:07]} e5 {[%emt 0:00:30]} 4. Nc3 {[%emt 0:00:14]} Ne7 {[%emt 0:00:15]} 5. e3 {[%emt 0:00:27]} d6 {[%emt 0:02:06]} 6. Nge2 {[%emt 0:00:31]} O-O {[%emt 0:01:54]} 7. O-O {[%emt 0:00:58]} c5 {[%emt 0:04:40]} 8. d4 {[%emt 0:01:27]} f5 {[%emt 0:06:34]} 9. dxe5 {[%emt 0:01:54]} dxe5 {[%emt 0:00:18]} 10. e4 {[%emt 0:01:34]} Nbc6 {[%emt 0:02:01]} 11. Be3 {[%emt 0:07:17]} Nd4 {[%emt 0:06:40]} 12. Bg5 {[%emt 0:10:58]} h6 {[%emt 0:03:03]} 13. Bxe7 {[%emt 0:02:04]} Qxe7 {[%emt 0:00:09]} 14. Nd5 {[%emt 0:01:12]} Qd8 {[%emt 0:08:34]} 15. Nec3 {[%emt 0:05:35]} f4 {[%emt 0:04:30]} 16. f3 {[%emt 0:17:48]} fxg3 {[%emt 0:07:14]} 17. hxg3 {[%emt 0:00:03]} Qg5 {[%emt 0:01:29]} 18. Qe1 {[%emt 0:04:11]} Nc2 {[%emt 0:11:36]} 19. Qc1 {[%emt 0:03:52]} Nxa1 {[%emt 0:01:29]} 20. Qxg5 {[%emt 0:00:36]} hxg5 {[%emt 0:00:09]} 21. Rxa1 {[%emt 0:00:31]} Bd7 {[%emt 0:04:27]} 22. Rd1 {[%emt 0:01:40]} Rad8 {[%emt 0:01:59]} 23. Nc7 {[%emt 0:02:26]} g4 {[%emt 0:03:04]} 24. fxg4 {[%emt 0:08:54]} Bxg4 {[%emt 0:00:12]} 25. Rxd8 {[%emt 0:01:18]} Rxd8 {[%emt 0:00:09]} 26. N7d5 {[%emt 0:04:12]} Kf7 {[%emt 0:05:07]} 27. Ne3 {[%emt 0:07:33]} Bd7 {[%emt 0:01:51]} 28. Ned5 {[%emt 0:00:31]} Bh6 {[%emt 0:01:25]} 29. Bf3 {[%emt 0:06:29]} Bc1 {[%emt 0:03:09]} 30. b3 {[%emt 0:00:54]} Bd2 {[%emt 0:04:18]} 31. a4 {[%emt 0:03:12]} Bc6 {[%emt 0:03:45]} 32. Nd1 {[%emt 0:02:25]} a6 {[%emt 0:02:43]} 33. Be2 {[%emt 0:01:18]} Ke6 {[%emt 0:07:24]} 34. Bg4+ {[%emt 0:00:45]} Kd6 {[%emt 0:00:19]} 35. Be2 {[%emt 0:00:27]} Rf8 {[%emt 0:00:54]} 36. Kg2 {[%emt 0:02:01]} Ra8 {[%emt 0:01:57]} 37. N1c3 {[%emt 0:01:52]} Rb8 {[%emt 0:00:44]} 38. Kf3 {[%emt 0:00:38]} g5 {[%emt 0:01:02]} 39. Bd3 {[%emt 0:01:27]} Rf8+ {[%emt 0:00:34]} 40. Kg2 {[%emt 0:00:23]} Rh8 {[%emt 0:01:02]} 41. Be2 {[%emt 0:04:25]} Bd7 {[%emt 0:04:53]} 42. Nd1 {[%emt 0:04:54]} Rf8 {[%emt 0:05:32]} 43. Nf2 {[%emt 0:04:38]} Rb8 {[%emt 0:03:03]} 44. Nb6 {[%emt 0:02:41]} Bc6 {[%emt 0:01:17]} 45. Bd3 {[%emt 0:02:11]} Ba5 {[%emt 0:00:36]} 46. Nd5 {[%emt 0:00:22]} b5 {[%emt 0:00:41]} 47. axb5 {[%emt 0:00:44]} axb5 {[%emt 0:00:08]} 48. Nh3 {[%emt 0:02:34]} bxc4 {[%emt 0:01:07]} 49. Bxc4 {[%emt 0:00:25]} Bd2 {[%emt 0:00:45]} 50. Ng1 {[%emt 0:00:51]} Bb5 {[%emt 0:01:23]} 51. Nf3 {[%emt 0:01:46]} Bxc4 {[%emt 0:02:06]} 52. bxc4 {[%emt 0:00:02]} Rb2 {[%emt 0:01:15]} 53. Nf6 {[%emt 0:02:32]} Rc2 {[%emt 0:06:40]} 54. Ng4 {[%emt 0:01:10]} Bb4+ {[%emt 0:01:34]} 55. Kh3 {[%emt 0:00:38]} Rxc4 {[%emt 0:01:26]} 56. Ngxe5 {[%emt 0:00:41]} Rxe4 {[%emt 0:01:08]} 57. Nf7+ {[%emt 0:00:24]} Ke7 {[%emt 0:00:52]} 58. N7xg5 {[%emt 0:00:32]} Re3 {[%emt 0:00:22]} 59. Nh4 {[%emt 0:00:49]} Re1 {[%emt 0:01:01]} 60. Ngf3 {[%emt 0:00:45]} Ra1 {[%emt 0:01:10]} 61. Ne5 {[%emt 0:01:34]} Ra3 {[%emt 0:01:06]} 62. Kg4 {[%emt 0:01:34]} Be1 {[%emt 0:00:48]} 63. Nhf3 {[%emt 0:00:24]} Bf2 {[%emt 0:01:11]} 64. Kh3 {[%emt 0:03:03]} Ke6 {[%emt 0:00:42]} 65. Kg2 {[%emt 0:00:30]} Bd4 {[%emt 0:00:44]} 66. Nc4 {[%emt 0:01:41]} Ra8 {[%emt 0:00:54]} 67. Nfd2 {[%emt 0:00:41]} Rg8 {[%emt 0:00:56]} 68. Kf3 {[%emt 0:01:10]} Kd5 {[%emt 0:00:27]} 69. Nb6+ {[%emt 0:00:32]} Ke6 {[%emt 0:00:30]} 70. Nbc4 {[%emt 0:00:04]} Bc3 {[%emt 0:00:21]} 71. Ne4 {[%emt 0:01:07]} Bb4 {[%emt 0:00:07]} 72. Nb2 {[%emt 0:00:43]} Ke5 {[%emt 0:00:31]} 73. Nd3+ {[%emt 0:00:22]} Kd4 {[%emt 0:00:24]} 74. Nf4 {[%emt 0:00:38]} c4 {[%emt 0:00:48]} 75. Ne2+ {[%emt 0:00:23]} Kd3 {[%emt 0:00:43]} 76. g4 {[%emt 0:00:36]} Rf8+ {[%emt 0:00:39]} 77. Nf4+ {[%emt 0:00:02]} Kc2 {[%emt 0:00:32]} 78. Ke3 {[%emt 0:00:00]} Kb2 {[%emt 0:00:17]} 79. Nd5 {[%emt 0:00:12]} Ba5 {[%emt 0:00:37]} 80. Kd4 {[%emt 0:00:40]} c3 {[%emt 0:00:36]} 81. Nexc3 {[%emt 0:01:02]} 1/2-1/2